bitfinex-derivatives/quotes_SOLF0:USTF0_20250907
["timestamp","ask_amount","ask_price","bid_price","bid_amount"]
[1757270380806,7.6,201.74,201.73,3.09548441]
[1757270382306,13.13628036,201.74,201.73,1.98185445]
[1757270391913,13.13628036,201.74,201.69,119.9]
[1757270392113,13.13628036,201.74,201.73,1.98185445]
[1757270393816,7.6,201.73,201.69,119.9]
[1757270394015,7.6,201.73,201.72,1.98185445]
[1757270398414,5.53628036,201.74,201.72,1.98185445]
[1757270398620,8.32656075,201.76,201.73,8.25]
[1757270398621,13.17357878,201.76,201.73,8.25]
[1757270398816,13.17357878,201.76,201.75,1.98185445]
[1757270400817,0.03729842,201.76,201.75,1.98185445]
[1757270401621,7.63729842,201.76,201.75,1.98185445]
[1757270409930,7.63729842,201.76,201.73,1.98185445]
[1757270410129,13.36665647,201.74,201.73,1.98185445]
[1757270410330,7.82,201.74,201.7,8.25]
[1757270410529,7.82,201.74,201.73,1.98185445]
[1757270410726,13.36665647,201.74,201.73,1.98185445]
[1757270414031,7.82,201.74,201.73,1.98185445]
[1757270415931,7.82,201.74,201.69,119.9]
[1757270416133,7.82,201.74,201.73,1.98185445]
[1757270416432,7.82,201.74,201.7,7.71]
[1757270416730,7.82,201.72,201.71,1.98185445]
[1757270417832,5.54665647,201.73,201.71,1.98185445]
[1757270418133,13.36665647,201.73,201.71,9.69185445]
[1757270418334,5.54665647,201.73,201.72,1.98185445]
[1757270418635,13.36665647,201.73,201.72,1.98185445]
[1757270418935,7.82,201.73,201.7,1.98185445]
[1757270419133,7.82,201.71,201.7,1.98185445]
[1757270420129,7.82,201.71,201.65,7.71]
[1757270420331,7.82,201.71,201.7,1.98185445]
[1757270425141,7.82,201.71,201.66,7.71]
[1757270425436,7.82,201.71,201.7,1.98185445]
[1757270426239,7.82,201.71,201.67,7.71]
[1757270426435,7.82,201.71,201.7,1.98185445]
[1757270426630,7.82,201.71,201.67,7.71]
[1757270426836,7.82,201.71,201.7,1.98185445]
[1757270429639,7.82,201.72,201.66,7.71]
[1757270429837,7.82,201.72,201.7,1.98185445]
[1757270430338,5.58281081,201.73,201.66,7.71]
[1757270430639,7.82,201.72,201.7,1.98185445]
[1757270430840,5.58281081,201.73,201.7,1.98185445]
[1757270431235,7.82,201.72,201.7,1.98185445]
[1757270431440,5.58281081,201.73,201.7,1.98185445]
[1757270432034,7.82,201.72,201.7,1.98185445]
[1757270432436,5.58281081,201.73,201.7,1.98185445]
[1757270432635,5.58281081,201.73,201.68,7.71]
[1757270432840,5.58281081,201.73,201.7,1.98185445]
[1757270433042,7.82,201.72,201.7,1.98185445]
[1757270433637,5.58281081,201.73,201.7,1.98185445]
[1757270433834,7.82,201.72,201.7,1.98185445]
[1757270434443,5.58281081,201.73,201.7,1.98185445]
[1757270434444,0.03753212,201.73,201.7,1.98185445]
[1757270434843,7.82,201.72,201.7,1.98185445]
[1757270435141,0.03753212,201.73,201.7,1.98185445]
[1757270435341,7.5,201.72,201.7,1.98185445]
[1757270435538,0.03753212,201.73,201.71,1.98185445]
[1757270435742,7.5,201.72,201.71,1.98185445]
[1757270435944,7.5,201.72,201.68,7.71]
[1757270436246,7.5,201.72,201.71,1.98185445]
[1757270439247,11.23578304,201.72,201.71,1.98185445]
[1757270440147,11.23571892,201.72,201.71,1.98185445]
[1757270440643,3.73571892,201.72,201.7,1.98185445]
[1757270440848,7.5,201.71,201.7,1.98185445]
[1757270441148,11.23578921,201.71,201.7,1.98185445]
[1757270441349,7.5,201.71,201.7,1.98185445]
[1757270443251,11.2358119,201.71,201.7,1.98185445]
[1757270444353,11.2358119,201.71,201.68,7.71]
[1757270444546,7.5,201.71,201.68,7.71]
[1757270444853,5.57936723,201.73,201.68,7.71]
[1757270445047,3.73600503,201.72,201.68,7.71]
[1757270445350,7.5,201.7,201.68,7.71]
[1757270449053,7.5,201.71,201.62,49.15872301]
[1757270449354,7.5,201.67,201.61,10.6980275]
[1757270449559,7.5,201.65,201.62,7.6]
[1757270452249,7.5,201.68,201.63,3.0980275]
[1757270452450,7.5,201.68,201.64,7.6]
[1757270452746,7.5,201.68,201.63,3.0980275]
[1757270452952,7.5,201.68,201.63,7.6]
[1757270453150,7.5,201.68,201.64,10.6980275]
[1757270453352,0.03367251,201.69,201.64,10.6980275]
[1757270453545,7.5,201.68,201.64,7.6]
[1757270453746,0.03367251,201.69,201.64,7.6]
[1757270453952,7.5,201.68,201.64,7.6]
[1757270454148,0.03367251,201.69,201.64,7.6]
[1757270454348,7.5,201.68,201.64,7.6]
[1757270454952,0.03367251,201.69,201.64,7.6]
[1757270455454,0.03367251,201.69,201.63,3.0980275]
[1757270456155,0.03367251,201.69,201.65,3.0980275]
[1757270456353,0.03367251,201.69,201.66,7.6]
[1757270456550,7.53367251,201.69,201.66,7.6]
[1757270456751,7.5,201.68,201.66,7.6]
[1757270457252,0.03367251,201.69,201.66,7.6]
[1757270457454,7.5,201.68,201.66,7.6]
[1757270460057,7.5,201.68,201.61,4.4636]
[1757270460257,7.5,201.68,201.63,10.6980275]
[1757270460757,7.5,201.68,201.63,3.0980275]
[1757270460960,5.57550762,201.69,201.63,3.0980275]
[1757270461159,7.5,201.68,201.63,10.6980275]
[1757270461553,5.57550762,201.69,201.63,3.0980275]
[1757270462259,7.5,201.68,201.63,10.6980275]
[1757270462759,5.57550762,201.69,201.63,3.0980275]
[1757270463655,7.5,201.68,201.63,10.6980275]
[1757270463856,5.57550762,201.69,201.63,3.0980275]
[1757270464461,7.5,201.68,201.63,10.6980275]
[1757270464655,5.57550762,201.69,201.63,3.0980275]
[1757270465057,8.0,201.68,201.63,11.2080275]
[1757270465654,8.0,201.68,201.63,3.0980275]
[1757270465854,8.0,201.68,201.63,11.2080275]
[1757270466159,5.57550762,201.69,201.62,11.2080275]
[1757270466461,8.0,201.68,201.62,11.2080275]
[1757270467360,13.54183511,201.68,201.62,11.2080275]
[1757270467964,8.0,201.68,201.62,11.2080275]
[1757270468362,5.57550762,201.69,201.62,11.2080275]
[1757270468663,5.54183511,201.68,201.62,11.2080275]
[1757270469458,8.0,201.67,201.62,11.2080275]
[1757270469862,8.0,201.67,201.62,3.0980275]
[1757270470361,5.54183511,201.68,201.62,3.0980275]
[1757270470856,8.0,201.67,201.62,3.0980275]
[1757270471062,8.0,201.67,201.62,11.2080275]
[1757270471459,5.54183511,201.68,201.62,3.0980275]
[1757270471860,8.0,201.67,201.62,11.2080275]
[1757270472064,5.54183511,201.68,201.62,3.0980275]
[1757270472258,8.0,201.67,201.62,11.2080275]
[1757270472561,5.54183511,201.68,201.62,3.0980275]
[1757270472762,8.0,201.67,201.62,3.0980275]
[1757270472959,8.0,201.67,201.63,8.11]
[1757270473361,5.54183511,201.68,201.63,8.11]
[1757270473860,8.0,201.67,201.6,8.11]
[1757270474060,5.54183511,201.68,201.6,11.2080275]
[1757270474262,5.54183511,201.68,201.6,80.1080275]
[1757270474655,8.0,201.65,201.6,11.2080275]
[1757270474861,8.0,201.65,201.6,3.0980275]
[1757270475159,0.0343335,201.66,201.6,65.9]
[1757270475360,8.0,201.65,201.61,8.11]
[1757270475760,0.0343335,201.66,201.61,8.11]
[1757270476168,8.0,201.65,201.59,8.11]
[1757270476360,8.0,201.65,201.59,11.2080275]
[1757270476558,8.0,201.65,201.55,8.11]
[1757270476764,8.0,201.65,201.57,3.0980275]
[1757270476961,8.0,201.65,201.57,11.2080275]
[1757270477260,0.03210356,201.63,201.57,8.11]
[1757270477862,8.0,201.62,201.56,11.2080275]
[1757270480468,8.0,201.62,201.56,8.11]
[1757270483566,0.03210356,201.63,201.58,3.0980275]
[1757270483771,0.03210356,201.63,201.62,8.11]
[1757270489077,0.03210356,201.63,201.52,8.11]
[1757270489078,8.03210356,201.63,201.52,8.11]
[1757270489274,8.0,201.62,201.57,3.0980275]
[1757270489475,8.03210356,201.63,201.57,11.2080275]
[1757270493180,13.57393867,201.63,201.57,11.2080275]
[1757270493880,13.57393867,201.63,201.57,8.11]
[1757270494072,13.57393867,201.63,201.57,11.2080275]
[1757270494581,13.57393867,201.63,201.56,120.36]
[1757270494582,0.03210356,201.63,201.6,3.0980275]
[1757270495079,0.03210356,201.63,201.62,8.23]
[1757270500885,0.03210356,201.63,201.62,128.51]
[1757270501379,0.03210356,201.63,201.59,123.3580275]
[1757270501585,8.09210356,201.63,201.6,8.23]
[1757270502389,8.09210356,201.63,201.59,123.3580275]
[1757270503189,8.09210356,201.63,201.6,8.23]
[1757270504192,8.09210356,201.63,201.59,123.3580275]
[1757270504393,8.09210356,201.63,201.61,10.2144149]
[1757270506388,8.09210356,201.63,201.47,75.04905617]
[1757270506389,16.87275267,201.62,201.56,1.9844149]
[1757270506693,5.53276326,201.6,201.57,8.23]
[1757270507288,5.53276326,201.6,201.58,1.9844149]
[1757270507491,0.03171181,201.61,201.59,8.23]
[1757270507692,5.53276326,201.63,201.6,1.9844149]
[1757270507890,5.53276326,201.63,201.61,8.23]
[1757270508197,0.0337374,201.62,201.61,8.23]
[1757270509194,5.56650066,201.62,201.61,8.23]
[1757270511393,5.56650066,201.62,201.6,10.2144149]
[1757270512592,5.56650066,201.62,201.6,1.9844149]
[1757270512795,5.56650066,201.62,201.61,8.23]
[1757270514293,5.56650066,201.62,201.6,10.2144149]
[1757270514698,5.56650066,201.62,201.6,1.9844149]
[1757270514899,5.56650066,201.62,201.6,10.2144149]
[1757270516697,5.56650066,201.62,201.6,1.9844149]
[1757270516898,5.56650066,201.62,201.61,8.23]
[1757270517203,0.0337374,201.62,201.61,8.23]
[1757270517403,5.53276326,201.66,201.61,8.23]
[1757270517598,5.53276326,201.68,201.66,8.23]
[1757270518097,5.53276326,201.69,201.67,1.9844149]
[1757270518299,5.53276326,201.69,201.68,8.23]
[1757270518601,5.53276326,201.7,201.67,1.9844149]
[1757270518904,5.53276326,201.7,201.69,10.2144149]
[1757270519292,5.53276326,201.71,201.69,10.2144149]
[1757270520104,13.59276326,201.71,201.69,10.2144149]
[1757270520700,5.53276326,201.71,201.69,1.9844149]
[1757270520900,8.06,201.7,201.69,1.9844149]
[1757270522502,5.53276326,201.71,201.69,1.9844149]
[1757270522706,13.59276326,201.71,201.69,1.9844149]
[1757270523706,8.06,201.69,201.66,10.25247754]
[1757270524106,8.06,201.69,201.66,10.2144149]
[1757270524907,8.06,201.69,201.67,1.9844149]
[1757270525300,5.53276326,201.68,201.65,0.03625106]
[1757270525504,7.94,201.66,201.65,0.03625106]
[1757270525705,13.46752027,201.66,201.65,0.03625106]
[1757270526108,7.94,201.66,201.65,0.03625106]
[1757270527203,7.94,201.66,201.55,7.63]
[1757270527404,13.46647239,201.6,201.57,1.9844149]
[1757270527603,7.94,201.6,201.57,9.6144149]
[1757270528209,5.52647239,201.62,201.59,1.9844149]
[1757270528506,13.49902143,201.61,201.59,1.9844149]
[1757270529008,7.94,201.6,201.59,1.9844149]
[1757270534608,7.94,201.6,201.58,1.9844149]
[1757270536809,7.94,201.6,201.57,1.9844149]
[1757270537011,7.94,201.6,201.57,9.6144149]
[1757270542417,0.03254904,201.61,201.57,9.6144149]
[1757270542609,7.94,201.6,201.57,1.9844149]
[1757270543914,0.03254904,201.61,201.57,1.9844149]
[1757270545004,7.94,201.6,201.57,1.9844149]
[1757270545713,0.03254904,201.61,201.57,1.9844149]
[1757270545917,7.94,201.6,201.57,1.9844149]
[1757270546312,0.03254904,201.61,201.57,1.9844149]
[1757270546508,7.94,201.6,201.57,1.9844149]
[1757270546712,0.03254904,201.61,201.57,1.9844149]
[1757270546912,7.94,201.6,201.57,1.9844149]
[1757270547312,0.03254904,201.61,201.57,1.9844149]
[1757270548116,7.94,201.6,201.57,9.6144149]
[1757270548317,0.03254904,201.61,201.57,9.6144149]
[1757270548818,7.94,201.6,201.57,9.6144149]
[1757270550918,0.03254904,201.61,201.57,1.9844149]
[1757270551109,7.94,201.6,201.57,1.9844149]
[1757270551310,0.03254904,201.61,201.57,1.9844149]
[1757270551616,0.03254904,201.61,201.57,9.6144149]
[1757270551819,7.94,201.6,201.57,9.6144149]
[1757270552623,0.03254904,201.61,201.57,9.6144149]
[1757270552822,7.94,201.6,201.57,9.6144149]
[1757270553726,7.94,201.6,201.57,7.63]
[1757270555525,0.03254904,201.61,201.57,7.63]
[1757270556822,0.03254904,201.61,201.6,9.9144149]
[1757270557022,5.52647239,201.66,201.61,7.93]
[1757270557218,5.52647239,201.66,201.61,9.9144149]
[1757270557422,8.28970858,201.68,201.61,9.9144149]
[1757270557423,7.9,201.64,201.61,9.9144149]
[1757270561531,7.9,201.64,201.62,7.93]
[1757270562532,5.52647239,201.65,201.61,1.9844149]
[1757270562734,13.42647239,201.65,201.61,7.93]
[1757270563227,13.42647239,201.65,201.6,0.03339447]
[1757270563434,7.9,201.65,201.61,1.9844149]
[1757270563635,13.42647239,201.66,201.62,7.93]
[1757270563934,5.52647239,201.66,201.62,7.93]
[1757270564233,7.9,201.65,201.62,7.93]
[1757270564635,7.9,201.65,201.61,1.9844149]
[1757270564836,13.42647239,201.65,201.62,7.93]
[1757270565833,5.52647239,201.65,201.64,7.93]
[1757270566030,5.52647239,201.67,201.64,7.93]
[1757270566227,5.52647239,201.67,201.6,0.03339447]
[1757270566228,5.52647239,201.66,201.65,9.9144149]
[1757270566436,5.52647239,201.66,201.65,7.93]
[1757270567638,5.52647239,201.7,201.66,7.93]
[1757270567840,5.52647239,201.7,201.65,3.09949562]
[1757270568034,5.52647239,201.7,201.66,7.93]
[1757270568230,5.52647239,201.69,201.65,3.09949562]
[1757270568434,5.52647239,201.69,201.66,7.93]
[1757270568635,5.52647239,201.69,201.65,3.09949562]
[1757270568834,5.52647239,201.69,201.66,7.93]
[1757270569736,13.42647239,201.69,201.65,3.09949562]
[1757270570138,13.42647239,201.69,201.66,7.93]
[1757270570337,5.52647239,201.69,201.66,7.93]
[1757270570540,5.52647239,201.69,201.65,3.09949562]
[1757270571333,5.52647239,201.7,201.65,3.09949562]
[1757270572837,5.52647239,201.71,201.65,3.09949562]
[1757270573036,5.52647239,201.71,201.66,7.93]
[1757270573237,5.52647239,201.71,201.65,3.09949562]
[1757270573438,5.52647239,201.71,201.66,3.09949562]
[1757270573645,13.42647239,201.71,201.67,7.93]
[1757270573939,13.42647239,201.71,201.66,3.09949562]
[1757270574833,5.52647239,201.71,201.66,3.09949562]
[1757270575034,5.52647239,201.72,201.7,7.93]
[1757270575336,5.52647239,201.73,201.69,3.09949562]
[1757270575538,5.52647239,201.73,201.7,7.93]
[1757270575836,5.52647239,201.76,201.72,3.09949562]
[1757270576038,13.42647239,201.76,201.73,7.93]
[1757270576442,7.9,201.76,201.73,7.93]
[1757270577034,5.52647239,201.75,201.72,0.03243053]
[1757270577232,5.52647239,201.76,201.72,0.03243053]
[1757270577438,7.9,201.75,201.69,7.93]
[1757270577638,5.52647239,201.76,201.72,0.03284535]
[1757270577834,7.9,201.75,201.72,0.03284535]
[1757270578235,5.52647239,201.76,201.72,0.03284535]
[1757270578739,7.9,201.75,201.72,0.03284535]
[1757270579243,5.52647239,201.76,201.72,0.03284535]
[1757270579844,7.9,201.75,201.72,0.03284535]
[1757270580234,5.52647239,201.76,201.72,0.03284535]
[1757270580440,7.9,201.75,201.72,0.03284535]
[1757270580936,13.42647239,201.75,201.72,0.03284535]
[1757270581554,5.52647239,201.74,201.72,0.03284535]
[1757270581741,13.42647239,201.73,201.72,0.03284535]
[1757270582747,7.9,201.73,201.72,0.03284535]
[1757270590147,5.52647239,201.77,201.72,7.73284535]
[1757270590347,8.23,201.76,201.73,7.7]
[1757270590746,8.23,201.78,201.75,7.7]
[1757270590942,8.23,201.81,201.75,7.7]
[1757270591854,8.23,201.81,201.76,0.03340541]
[1757270592450,5.52647239,201.82,201.76,0.03340541]
[1757270592647,8.23,201.81,201.76,0.03340541]
[1757270592843,5.52647239,201.82,201.76,0.03340541]
[1757270593044,8.23,201.81,201.76,0.03340541]
[1757270594051,5.52647239,201.82,201.76,0.03340541]
[1757270594352,8.23,201.82,201.77,3.09949562]
[1757270594752,5.52647239,201.82,201.77,3.09949562]
[1757270595753,8.23,201.81,201.77,3.09949562]
[1757270595952,5.52647239,201.82,201.77,3.09949562]
[1757270596152,8.23,201.81,201.77,3.09949562]
[1757270596647,5.52647239,201.82,201.77,3.09949562]
[1757270596852,5.52647239,201.82,201.77,10.79949562]
[1757270598055,8.23,201.81,201.77,10.79949562]
[1757270598251,5.52647239,201.82,201.77,10.79949562]
[1757270598556,5.52647239,201.83,201.77,10.79949562]
[1757270600055,5.52647239,201.83,201.77,3.09949562]
[1757270600660,8.23,201.82,201.77,3.09949562]
[1757270600860,5.52647239,201.83,201.77,3.09949562]
[1757270601561,8.23,201.82,201.77,3.09949562]
[1757270601957,5.52647239,201.83,201.77,3.09949562]
[1757270602252,5.52647239,201.82,201.77,3.09949562]
[1757270602458,5.52647239,201.82,201.77,10.79949562]
[1757270602657,8.23,201.81,201.77,10.79949562]
[1757270603158,5.52647239,201.82,201.77,10.79949562]
[1757270603762,8.23,201.81,201.77,10.79949562]
[1757270604061,5.52647239,201.83,201.77,10.79949562]
[1757270604252,8.23,201.82,201.77,10.79949562]
[1757270604458,8.23,201.81,201.77,10.79949562]
[1757270604959,5.52647239,201.82,201.77,10.79949562]
[1757270605162,8.23,201.82,201.77,10.79949562]
[1757270605364,8.23,201.81,201.77,10.79949562]
[1757270605564,8.23,201.82,201.77,10.79949562]
[1757270605860,8.23,201.82,201.78,7.7]
[1757270606058,13.75647239,201.83,201.78,7.7]
[1757270606260,5.52647239,201.83,201.8,3.09949562]
[1757270606562,5.52647239,201.85,201.8,3.09949562]
[1757270606763,5.52647239,201.85,201.83,3.09949562]
[1757270606962,13.75647239,201.86,201.83,7.7]
[1757270607367,8.23,201.86,201.83,7.7]
[1757270608065,5.52647239,201.89,201.86,7.7]
[1757270608366,13.75647239,201.89,201.86,7.7]
[1757270608668,8.23,201.89,201.86,7.7]
[1757270610064,5.52647239,201.89,201.85,0.03170729]
[1757270610265,8.23,201.88,201.85,7.73170729]
[1757270610961,5.52647239,201.89,201.85,0.03170729]
[1757270611166,8.23,201.86,201.85,0.03170729]
[1757270611369,13.75647239,201.86,201.85,0.03170729]
[1757270612263,8.23,201.86,201.85,0.03170729]
[1757270612469,13.75647239,201.86,201.85,0.03170729]
[1757270613571,8.23,201.86,201.85,0.03170729]
[1757270616271,13.75647239,201.86,201.85,0.03170729]
[1757270616968,8.23,201.86,201.85,0.03170729]
[1757270621568,5.51636755,201.86,201.85,7.87170729]
[1757270622169,13.75636755,201.87,201.85,0.03170729]
[1757270622668,13.75636755,201.87,201.85,7.87170729]
[1757270624573,3.09949562,201.96,201.85,7.87170729]
[1757270624574,13.75636755,201.88,201.85,7.87170729]
[1757270625365,13.75636755,201.88,201.86,7.84]
[1757270626177,8.24,201.88,201.86,7.84]
[1757270626571,13.75636755,201.91,201.85,7.87170729]
[1757270626775,13.75636755,201.91,201.88,7.84]
[1757270626976,8.24,201.91,201.88,7.84]
[1757270628479,8.24,201.91,201.9,1.97895246]
[1757270629279,13.75636755,201.91,201.9,1.97895246]
[1757270630478,8.24,201.9,201.85,0.03170729]
[1757270630678,5.51636755,201.91,201.86,1.97895246]
[1757270630978,8.24,201.89,201.86,1.97895246]
[1757270631479,5.51636755,201.9,201.86,1.97895246]
[1757270631675,8.24,201.89,201.86,1.97895246]
[1757270631883,5.51636755,201.9,201.86,1.97895246]
[1757270632281,10.26866104,201.92,201.86,1.97895246]
[1757270632282,5.51636755,201.89,201.86,1.97895246]
[1757270632883,8.24,201.88,201.86,1.97895246]
[1757270633183,5.51636755,201.9,201.86,1.97895246]
[1757270633383,5.51636755,201.89,201.86,1.97895246]
[1757270634082,5.51636755,201.89,201.85,0.03170729]
[1757270634381,8.24,201.88,201.85,0.03170729]
[1757270634586,5.51636755,201.88,201.85,0.03170729]
[1757270634781,8.24,201.87,201.85,0.03170729]
[1757270635181,8.24,201.87,201.86,1.97895246]
[1757270636179,13.75636755,201.87,201.86,1.97895246]
[1757270647197,8.24,201.87,201.86,1.97895246]
[1757270648788,15.79970858,201.89,201.86,10.07895246]
[1757270648985,15.79970858,201.89,201.88,1.97895246]
[1757270649492,13.05163723,201.89,201.88,1.97895246]
[1757270649888,5.54163723,201.89,201.88,14.49508336]
[1757270650496,7.51,201.9,201.88,14.49508336]
[1757270650692,7.51,201.9,201.89,6.39508336]
[1757270650996,7.51,201.9,201.89,1.97895246]
[1757270656101,8.28970858,201.91,201.89,1.97895246]
[1757270656303,7.51,201.9,201.89,1.97895246]
[1757270659502,15.82561306,201.9,201.89,1.97895246]
[1757270662894,8.31561306,201.9,201.89,14.64090099]
[1757270663094,8.31561306,201.91,201.9,8.1]
[1757270663295,7.51,201.96,201.9,14.64090099]
[1757270663505,7.51,201.96,201.95,1.97895246]
[1757270665803,7.51,202.0,201.93,0.03251314]
[1757270666003,7.51,202.0,201.95,1.97895246]
[1757270667513,7.51,202.0,201.93,0.03251314]
[1757270667704,7.51,202.0,201.95,1.97895246]
[1757270674003,5.53429616,201.96,201.95,1.97895246]
[1757270674209,13.04429616,201.96,201.95,6.50478804]
[1757270675214,13.04429616,201.96,201.95,1.97895246]
[1757270678211,5.53429616,201.96,201.95,9.85895246]
[1757270678425,13.42429616,201.97,201.95,14.38155791]
[1757270678715,7.89,201.96,201.95,7.88]
[1757270678916,7.89,201.96,201.95,4.52260481]
[1757270679312,7.89,201.96,201.94,7.88]
[1757270679518,7.89,201.96,201.95,4.54226508]
[1757270679818,7.89,201.96,201.95,6.52121754]
[1757270680319,13.42429616,201.97,201.95,14.40121754]
[1757270680512,5.53429616,201.98,201.95,1.97895246]
[1757270680713,7.89,201.98,201.97,1.97895246]
[1757270680920,7.89,201.98,201.97,6.52085988]
[1757270681121,7.89,201.98,201.97,1.97895246]
[1757270682823,5.53429616,201.99,201.97,1.97895246]
[1757270682824,5.53429616,201.99,201.98,7.88]
[1757270683013,7.89,202.0,201.98,7.88]
[1757270683214,7.89,202.0,201.99,1.97895246]
[1757270684724,13.42429616,202.0,201.99,1.97895246]
[1757270685024,7.89,202.0,201.99,1.97895246]
[1757270688120,13.42429616,202.01,201.99,1.97895246]
[1757270688325,7.89,202.01,201.99,9.85895246]
[1757270690528,7.89,202.01,202.0,3.08860783]
[1757270696133,7.92491267,202.02,202.0,10.96860783]
[1757270696328,7.89,202.01,202.0,3.08860783]
[1757270700834,0.03491267,202.02,202.01,7.88]
[1757270702037,5.53429616,202.06,202.01,7.88]
[1757270702234,5.53429616,202.07,202.05,3.08860783]
[1757270702535,13.42429616,202.07,202.05,3.08860783]
[1757270703637,5.53429616,202.07,202.05,3.08860783]
[1757270703937,7.89,202.06,202.05,3.08860783]
[1757270705437,7.92,202.06,202.04,0.03774597]
[1757270705736,5.53429616,202.07,202.04,0.03774597]
[1757270706235,13.45429616,202.06,202.04,0.03774597]
[1757270706428,13.45429616,202.05,202.04,0.03774597]
[1757270710937,5.53429616,202.05,202.04,8.10774597]
[1757270713834,16.22335233,202.08,202.04,8.10774597]
[1757270713835,5.53429616,202.06,202.04,8.10774597]
[1757270715041,13.45429616,202.06,202.04,8.10774597]
[1757270715232,13.45429616,202.06,202.05,3.08860783]
[1757270715437,7.92,202.06,202.05,3.08860783]
[1757270716443,13.4587488,202.06,202.05,3.08860783]
[1757270723747,7.92,202.05,201.95,3.08860783]
[1757270723949,13.46331189,202.0,201.93,3.08860783]
[1757270724142,7.92,201.99,201.93,3.08860783]
[1757270725352,13.46331189,201.99,201.93,3.08860783]
[1757270725851,7.92,201.99,201.93,3.08860783]
[1757270731952,7.92,201.99,201.92,8.07]
[1757270732258,13.46331189,201.99,201.92,8.07]
[1757270732557,7.92,201.97,201.92,8.07]
[1757270732756,5.54331189,201.98,201.92,8.07]
[1757270732946,7.92,201.97,201.87,11.15860783]
[1757270733153,3.08860783,201.96,201.78,402.136]
[1757270733356,7.92,201.95,201.84,3.08860783]
[1757270733555,7.92,201.95,201.85,8.07]
[1757270733757,7.92,201.93,201.85,8.07]
[1757270735161,13.46331189,201.93,201.85,8.07]
[1757270737361,7.92,201.93,201.85,8.07]
[1757270738158,13.46331189,201.93,201.82,7.91]
[1757270738358,7.92,201.93,201.82,7.91]
[1757270738558,13.46331189,201.93,201.82,7.91]
[1757270738759,13.46331189,201.93,201.85,0.03601356]
[1757270739861,5.54331189,201.92,201.85,0.03601356]
[1757270740062,7.75,201.91,201.85,0.03601356]
[1757270750365,7.75,201.91,201.85,2.01588483]
[1757270752671,7.75,201.91,201.85,0.03601356]
[1757270752871,7.75,201.91,201.85,2.01588483]
[1757270758877,7.75,201.89,201.85,0.03601356]
[1757270759175,7.75,201.87,201.85,0.03601356]
[1757270760469,7.75,201.9,201.85,0.03601356]
[1757270760678,5.54331189,201.91,201.87,1.97987127]
[1757270760679,7.75,201.91,201.87,1.97987127]
[1757270760871,7.75,201.93,201.9,7.91]
[1757270761577,7.75,201.95,201.9,7.91]
[1757270762077,7.75,201.95,201.87,7.91]
[1757270762267,7.75,201.95,201.88,1.97987127]
[1757270762683,7.75,201.95,201.87,7.91]
[1757270762975,7.75,201.95,201.88,1.97987127]
[1757270763176,13.29331189,201.95,201.88,1.97987127]
[1757270765084,5.54331189,201.94,201.88,1.97987127]
[1757270765683,8.17,201.93,201.82,8.22]
[1757270765884,8.17,201.93,201.88,1.97987127]
[1757270766085,13.71331189,201.93,201.88,1.97987127]
[1757270766285,8.17,201.92,201.89,8.22]
[1757270768179,13.71331189,201.92,201.89,8.22]
[1757270769792,8.17,201.92,201.89,8.22]
[1757270771689,5.54331189,201.93,201.89,8.22]
[1757270771893,8.17,201.92,201.89,8.22]
[1757270772095,5.54331189,201.93,201.89,8.22]
[1757270772491,8.17,201.92,201.89,8.22]
[1757270773196,5.54331189,201.93,201.89,8.22]
[1757270773690,8.17,201.92,201.89,8.22]
[1757270773896,5.54331189,201.93,201.89,8.22]
[1757270774098,13.71331189,201.92,201.89,8.22]
[1757270774297,8.17,201.91,201.89,8.22]
[1757270775305,8.17,201.91,201.88,1.97987127]
[1757270775498,5.54331189,201.91,201.88,1.97987127]
[1757270775704,8.17,201.9,201.88,1.97987127]
[1757270776002,5.54331189,201.91,201.88,1.97987127]
[1757270776203,8.17,201.9,201.88,1.97987127]
[1757270776603,13.71331189,201.9,201.88,1.97987127]
[1757270778200,8.17,201.89,201.86,10.19987127]
[1757270778506,8.17,201.88,201.86,10.19987127]